Cogmind - Beta 14 @@@ ROGUE MODE // 2024.08.07 @ 21:45:23 Player: CONM Result: Destroyed by G-47 Trooper with Particle Gun Performance ------------- Evolutions (0) 0 Regions Visited (2) 400 Robots Destroyed (11) 55 Value Destroyed (273) 273 Prototype IDs (0) 0 Alien Tech Used (0) 0 Bonus (0) 0 TOTAL SCORE: 728 Bonus ------- None Cogmind --------- Core Integrity 0/250 Matter 268/300 Energy 250/250 System Corruption 0% Temperature Cool (45) Movement Treading (240) Ox1 Location -10/Mines Parts ------- > --- POWER (1) -------- Ion Engine > --- PROPULSION (2) --- Light Treads Light Treads > --- UTILITY (2) ------ High-capacity Storage Unit Targeting Computer > --- WEAPON (2) ------- Medium Laser Assault Rifle > --- INVENTORY (20) --- Improved Ion Engine Heat Sink Small Storage Unit Large Matter Pod (121) Targeting Computer Light Armor Plating Light Armor Plating Grenade Launcher Peak State ------------ > --- POWER ------------ Ion Engine > --- PROPULSION ------- Wheel Wheel > --- UTILITY ---------- High-capacity Storage Unit Targeting Computer > --- WEAPON ----------- Medium Laser Assault Rifle > --- INVENTORY -------- Improved Ion Engine Light Treads Light Treads Small Storage Unit Large Matter Pod Targeting Computer Light Armor Plating Light Armor Plating Grenade Launcher [Rating: 8] Favorites ----------- Power Ion Engine Engine Ion Engine Propulsion Wheel Treads Light Treads Wheel Wheel Utility High-capacity Storage Unit Device Seismic Detector Storage High-capacity Storage Unit Processor Targeting Computer Weapon Assault Rifle Energy Gun Medium Laser Ballistic Gun Assault Rifle Launcher Grenade Launcher Build | -11 -10 -10 ------- Run | Yrd Mat Min Slots Evolved . | . . . Power . | . . . Propulsion . | . . . Utility . | . . . Weapon . | . . . Parts Attached 17 | 7 4 6 Power 2 | 1 . 1 Engine 2 | 1 . 1 Core . | . . . Reactor . | . . . Propulsion 7 | 2 3 2 Treads 5 | 2 1 2 Leg . | . . . Wheel 2 | . 2 . Hover . | . . . Flight . | . . . Utility 4 | 2 1 1 Device 1 | 1 . . Storage 2 | 1 1 . Processor 1 | . . 1 Hackware . | . . . Protection . | . . . Artifact . | . . . Weapon 4 | 2 . 2 Energy Gun 2 | 1 . 1 Energy Cannon . | . . . Ballistic Gun 1 | 1 . . Ballistic Cannon . | . . . Launcher 1 | . . 1 Special Weapon . | . . . Impact Weapon . | . . . Slashing Weapon . | . . . Piercing Weapon . | . . . Special Melee Weapon . | . . . Unidentified Prototypes . | . . . Parts Lost 4 | . . 4 Power 1 | . . 1 Propulsion 2 | . . 2 Utility 1 | . . 1 Weapon . | . . . Highest Loss Streak 2 | . . 2 To Critical Strikes . | . . . Average Slot Usage (%) 99 | . 100 98 Engine 13 | . 14 13 Treads 7 | . 3 9 Wheel 20 | . 24 18 Device 8 | . 14 5 Storage 14 | . 14 14 Processor 5 | . . 8 Energy Gun 12 | . 14 10 Ballistic Gun 14 | . 14 14 Launcher 1 | . . 3 Peak Build Rating 8 | 7 7 8 Average Rating 6 | 5 7 7 On Entrance 4 | . 7 7 Naked Turns . | . . . Heaviest Build 51 | 15 50 51 Greatest Support 40 | 40 40 40 Greatest Overweight (x) 4 | . 2 4 Average Overweight (x) 1 | . 1 1 Largest Inventory Capacity 20 | 8 20 20 Average Capacity 17 | 7 18 20 Most Carried 10 | 3 6 10 Average Carried 5 | 1 4 7 Final Capacity 20 | 8 20 20 Final Carried 8 | 3 6 8 Class Distribution -------------------- 100% | Mutant Dominant Class ---------------- Mutant | -10/Materials Mutant | -10/Mines Resources | -11 -10 -10 ----------- Run | Yrd Mat Min Matter Collected 585 | 246 128 211 Remotely . | . . . Salvage Created 329 | 29 128 172 Parts 22 | 4 2 16 Haulers Intercepted . | . . . Recyclers Shooed . | . . . Parts Field Recycled . | . . . Retrieved Matter . | . . . Parts Self-Destructed . | . . . Prevented . | . . . Kills | -11 -10 -10 ------- Run | Yrd Mat Min Combat Hostiles Destroyed 10 | . 3 7 Guns 7 | . 3 4 AOE 3 | . . 3 Classes Destroyed 4 | 1 1 2 Tunneler 1 | 1 . . Swarmer 4 | . . 4 Grunt 4 | . 3 1 Sentry 2 | . . 2 Best Kill Streak 3 | 1 2 3 Combat Bots Only 3 | . 2 3 Max Kills in Single Turn 2 | 1 1 2 Gunslinging . | . . . Exploded 2 | . . 2 Melee . | . . . Uniques/NPCs Destroyed . | . . . Combat | -11 -10 -10 -------- Run | Yrd Mat Min Hostile Shots Fired 69 | . 24 45 Missed 21 | . 5 16 Damage Taken 584 | . 206 378 Core 254 | . 86 168 Absorbed by Shields . | . . . Core Remaining (%) 100 | 100 . . Volleys Fired 42 | 1 19 22 Largest 2 | 2 2 2 Hottest 70 | 70 70 70 Shots Fired 81 | 2 38 41 Gun 79 | 2 38 39 Cannon . | . . . Launcher 2 | . . 2 Special . | . . . Kinetic 42 | 1 19 22 Thermal 37 | 1 19 17 Explosive 2 | . . 2 Electromagnetic . | . . . Robot Hit Streak 19 | 1 10 19 Robot Miss Streak 3 | . 3 2 Penetration Max . | . . . Secondary Targets . | . . . Shots Hit Robots 58 | 1 26 31 Core Hits 19 | 1 6 12 Critical Kills . | . . . Critical Parts Destroyed . | . . . Critical Strikes 3 | . . 3 Burn 3 | . . 3 Melee Attacks . | . . . Impact . | . . . Slashing . | . . . Piercing . | . . . Sneak Attacks . | . . . Combat Hostiles . | . . . Follow-up Attacks . | . . . Damage Inflicted 888 | 12 341 535 Guns 721 | 12 341 368 Cannons . | . . . Explosions 167 | . . 167 Melee . | . . . Ramming . | . . . Kinetic 397 | . 180 217 Thermal 324 | 12 161 151 Explosive 167 | . . 167 Electromagnetic . | . . . Impact . | . . . Slashing . | . . . Piercing . | . . . Highest Corruption . | . . . Average Corruption . | . . . Corruption Purged . | . . . Corruption Blocked . | . . . Overload Shots . | . . . Overflow Damage 13 | . . 13 Projectiles . | . . . Explosions 13 | . . 13 Melee . | . . . Knockbacks . | . . . Impact . | . . . Kinetic . | . . . Secondary . | . . . Self-Inflicted Damage 22 | . . 22 Shots 1 | . . 1 Rammed . | . . . Targets Rammed . | . . . Kicked . | . . . Crushed . | . . . Highest Temperature 135 | 9 135 78 Average Temperature 50 | 6 68 31 Received Heat Transfer 237 | . 114 123 Siege Activations . | . . . Robots Corrupted . | . . . Combat Hostiles . | . . . Parts Fried . | . . . Impact Corruptions . | . . . Robots Melted . | . . . Combat Hostiles . | . . . Parts Melted 3 | . . 3 Heat Transferred 1184 | 37 481 666 Parts Sabotaged . | . . . Parts Stolen . | . . . Parts Stripped . | . . . Power Chain Reactions . | . . . Alert | -11 -10 -10 ------- Run | Yrd Mat Min Peak Influence 193 | 5 77 193 Initial 30 | . 3 30 Average 58 | 1 27 89 Maximum Alert Level . | . . . Low Security (%) 100 | 100 100 100 Level 1 . | . . . Level 2 . | . . . Level 3 . | . . . Level 4 . | . . . Level 5 . | . . . High Security . | . . . Max Security . | . . . Squads Dispatched 1 | . 1 . Investigation . | . . . Extermination . | . . . Reinforcement 1 | . 1 . Assault . | . . . Garrison . | . . . Intercept . | . . . Searches Triggered . | . . . Construction Impeded . | . . . Haulers Reinforced . | . . . Active Scanning Responses . | . . . Cargo Convoy Interrupts . | . . . Stealth | -11 -10 -10 --------- Run | Yrd Mat Min Distress Signals . | . . . Communications Jammed . | . . . Distress Signals . | . . . Times Spotted 14 | . 4 10 Peak Tracking Total 3 | . 2 3 Tactical Retreats 1 | . . 1 Traps | -11 -10 -10 ------- Run | Yrd Mat Min Traps Triggered . | . . . Indirectly . | . . . Trap Hack Attempts . | . . . Triggered . | . . . Disarmed . | . . . Reprogrammed . | . . . Reused . | . . . Traps Extracted . | . . . Installed . | . . . Triggered . | . . . Machines | -11 -10 -10 ---------- Run | Yrd Mat Min Machines Disabled . | . . . Max in Single Turn . | . . . Machines Repaired . | . . . Machines Dismantled . | . . . Machines Sabotaged . | . . . Overloaded Fab Kills . | . . . Hacking | -11 -10 -10 --------- Run | Yrd Mat Min Machines Accessed 2 | . 2 . Terminals 1 | . 1 . Fabricators . | . . . Repair Stations . | . . . Recycling Units 1 | . 1 . Scanalyzers . | . . . Garrison Access . | . . . Total Hacks 2 | . 2 . Successful 2 | . 2 . Failed . | . . . Catastrophic . | . . . Database Lockouts . | . . . Manual . | . . . Terminals 1 | . 1 . Fabricators . | . . . Repair Stations . | . . . Recycling Units 1 | . 1 . Scanalyzers . | . . . Garrison Access . | . . . Terminal Hacks 1 | . 1 . Locate Traps 1 | . 1 . Fabricator Hacks . | . . . Repair Station Hacks . | . . . Recycling Unit Hacks 1 | . 1 . Report Inventory 1 | . 1 . Scanalyzer . | . . . Garrison Access Hacks . | . . . Unauthorized Hacks . | . . . Terminals . | . . . Fabricators . | . . . Repair Stations . | . . . Recycling Units . | . . . Scanalyzers . | . . . Garrison Access . | . . . Data Cores Recovered . | . . . Used . | . . . Hacking Detections 1 | . 1 . Full Trace Events . | . . . Feedback Events . | . . . Feedback Blocked . | . . . Robot Schematics Acquired . | . . . Robots Built . | . . . Authchips . | . . . Time . | . . . Total Robot Build Rating . | . . . Part Schematics Acquired . | . . . Parts Built . | . . . Authchips . | . . . Time . | . . . Total Part Build Rating . | . . . Parts Repaired . | . . . Time . | . . . Parts Recycled . | . . . Recycled Matter . | . . . Retrieved Matter . | . . . Retrieved Components . | . . . Parts Scanalyzed . | . . . Part Schematics Acquired . | . . . Parts Damaged . | . . . Bothacking | -11 -10 -10 ------------ Run | Yrd Mat Min Used RIF Installer . | . . . Robots Hacked . | . . . Non-combat . | . . . Combat . | . . . Robot Hacks Applied . | . . . Relay Couplers Released . | . . . Fabnet Peak Effective % . | . . . Robots Rewired . | . . . Allies Hacked . | . . . Hacks Repelled . | . . . Allies | -11 -10 -10 -------- Run | Yrd Mat Min Total Allies . | . . . Largest Group . | . . . Highest-Rated Group . | . . . Highest-Rated Ally . | . . . Total Orders . | . . . Ally Attacks . | . . . Total Damage . | . . . Kills . | . . . Allies Corrupted . | . . . Allies Melted . | . . . Intel | -11 -10 -10 ------- Run | Yrd Mat Min Robot Analysis Total . | . . . Derelict Logs Recovered . | . . . Drone Launches . | . . . Drone Recoveries . | . . . Exploration | -11 -10 -10 ------------- Run | Yrd Mat Min Turns Passed 972 | 122 315 535 Spaces Moved 613 | 69 215 329 Core 3 | 3 . . Treads 157 | 66 24 67 Legs . | . . . Wheels 453 | . 191 262 Hover . | . . . Flight . | . . . Fastest Speed 50 | 50 80 110 Average Speed 131 | 155 115 136 Slowest Speed 240 | 160 160 240 Overloaded Moves . | . . . Propulsion Burnouts . | . . . Robots Hopped . | . . . Cave-ins Triggered . | . . . Exploration Rate (%) 33 | 4 30 65 Regions Visited 2 Branch Regions 1 Pre-discovered Areas . | . . . Known Exits Taken . | . . . Unknown Exits Taken 2 | 1 1 . Scrap Searched 1 | . . 1 Spaces Dug . | . . . Terrain Destroyed 14 | . . 14 Melee . | . . . Projectile . | . . . AOE 14 | . . 14 Terrain Rammed . | . . . Walls Destroyed . | . . . Machines Disabled . | . . . Actions | -11 -10 -10 --------- Run | Yrd Mat Min Total 692 | 79 241 372 Wait 12 | . 2 10 Move 611 | 68 214 329 Hop . | . . . Pick Up 10 | 3 2 5 Fast Attach 8 | 7 . 1 Attach 3 | . . 3 Detach . | . . . Swap 6 | . 4 2 Drop . | . . . Fire 42 | 1 19 22 Melee . | . . . Ram . | . . . Kick . | . . . Crush . | . . . Escape Stasis . | . . . Rewire . | . . . Trap . | . . . Miscellaneous . | . . . Route ------- -11/Scrapyard -10/Materials -10/Mines (discovered 1 exit: [*Mat]) History --------- Turn | Location | Event 33 | -11/Scrapyard | Discovered new exit (range 16) 123 | -11/Scrapyard | Entered Materials 302 | -10/Materials | Build established: Mutant 425 | -10/Materials | Discovered new exit (range 11) 438 | -10/Materials | Entered Mines 535 | -10/Mines | Discovered new exit (range 12) 645 | -10/Mines | Core integrity fell below 50% 715 | -10/Mines | Core integrity fell below 20% 773 | -10/Mines | Assembled infested the area 973 | -10/Mines | Destroyed by G-47 Trooper with Particle Gun Last Messages --------------- 00657_ Ion Engine destroyed. 00658_ Y-45 Defender suffers critical hit (Burn). 00658_ Heat Sink melted. 00658_ Hvy. Assault Rifle melted. 00658_ Y-45 Defender destroyed. 00662_ Acquired 56 matter. 00667_ Acquired Targeting Computer. 00677_ Acquired Lgt. Armor Plating. 00683_ Acquired Imp. Ion Engine. 00686_ Acquired Heat Sink. 00722_ Ion Engine melted. 00722_ G-34 Mercenary destroyed. 00736_ Acquired 33 matter. 00773_ ALERT: Infestation in the mines, dispatching Demolisher response squad. 00785_ Wheel destroyed. 00789_ S-10 Pest destroyed. 00919_ K-01 Serf cleans the Plasma Injector. 00959_ U-05 Engineer builds a Wall. 00967_ G-47 Trooper suffers critical hit (Burn). Map ----- +----------------------------------------------------+ | ???????# ##?## #?# """ # | | ???????# ##### #?# # | | ??????## #?## # | | ??????# #??## # | | ??????# = #???## ## | | ??????## # #[ [ ##????# ##? | | ???????#### [ ###?????# ##?? | | ??????????### #######?###???? | | ????????????# #### ##??????? | | ????????????## #?# #??????? | | ?????????????# ### ##?????? | | ?????????????# ##????? | | ?????????????####### #????? | | ???????????????????# #????? | | ???????????????????## ##????? | | ????????????????????# ####?????? | | ????????????????????# #????????? | | ????????????????????# #????????? | | ????????????????????# ######## | | ????????????????????# | | ?????????????#####??#### | | ???####?????## ##????# ##### | | ??## ##??## ####?# #????? | | ??# #??# ### #????? | | ??# #### """ #????? | | ???# @## """ #????? | | ???## g #### """ #####????? | | ????###### #??## ##????????? | | ?????????# ###### ###?????????? | | ????????## ######???????????? | | ????????# ##?????????????? | | ????????# ##????????????? | | ????????# ##???????????? | | ????????# ## ##??????????? | | ????????## #### ##?????????? | | ?????????####??## ##????????? | | ????????????????###! #????????? | | ??????????????????## ##????????? | | ?????###########???# #?????????? | | ????##" ## ##??# #?????????# | | ????#"" =#[ #??# ##???????## | | ????# +% #?## #####??## | | ????#!] [" ##?# #### | | ????#"" # ##??# """ | | ????##" ## #???# """ | | ?????#### ##???# """ ## ## | | ???????# ###### ## ### | | ???????# ## #?# | | ???????# ###### ## #?? | | ???????## ##????## #?? | +----------------------------------------------------+ Best States ------------- Heat Dissipation 25 Energy Generation 10 Energy Capacity 250 Matter Stores 300 Matter Capacity 300 Sight Range 16 Terrain Scan Density 10 Evasion (%) 40 Targeting Accuracy 5 Recoil Reduction 2 Item Schematics ----------------- None Robot Schematics ------------------ None Fabricated ------------ Nothing Alien Tech Used ----------------- None Achievements -------------- None Challenges ------------ None Game ------ Seed OvertunedCooledFlamer Manual? 0 Play Time 00:10:14 Cumulative 54.2 hours Start 2024.08.07 @ 21:35:21 End 2024.08.07 @ 21:45:23 Sessions 1 Manual Loads 0 Difficulty Rogue Special Mode None Game No. 80 Rogue 80 Adventurer 0 Explorer 0 Win Type - Total 0 Types 0/0/0/0/0/0/0/0/0 Lore% 18 Gallery% 32 Achievement% 37 Wizard Run 0 Options --------- Layout 0 ASCII 0 Keyboard 0 Movement Arrows Keybinds 0 Fullscreen 2 Font 18/SmallcapsGlow Map View 76x50 Zoom Use 0% Tactical HUD 1 Map Filters NONE Filters NONE Steam 1 RUN: 3f67e82a-1ac2-443b-8fc1-c4ba6d36f4b2